bitfinex-derivatives/quotes_ETHF0:USTF0_20240817
["timestamp","ask_amount","ask_price","bid_price","bid_amount"]
[1723914995908,1.78206,2618.5,2618.3,1.4374827]
[1723914996107,0.3501,2618.5,2618.3,0.0054827]
[1723914996307,0.3501,2618.5,2618.4,1.43197]
[1723914996509,1.78206,2618.5,2618.3,1.4374827]
[1723914997117,0.3501,2618.5,2618.3,1.4374827]
[1723914997412,1.78206,2618.5,2618.3,1.4374827]
[1723914997611,1.78206,2618.5,2618.4,1.43197]
[1723914997801,1.78203,2618.5,2618.4,1.43197]
[1723914998003,0.00028265,2618.6,2618.3,1.4374827]
[1723914998508,1.43197,2618.4,2618.3,1.4375027]
[1723914999110,1.78387,2618.4,2618.3,4.6453027]
[1723914999506,0.3519,2618.4,2618.3,4.6453027]
[1723914999708,1.78387,2618.4,2618.3,4.6453027]
[1723914999898,1.78387,2618.4,2618.3,3.2132827]
[1723915000107,1.78387,2618.4,2618.3,4.6453027]
[1723915000405,1.78387,2618.4,2618.3,3.2132827]
[1723915000609,1.78387,2618.4,2618.3,4.6453027]
[1723915001215,0.3519,2618.4,2618.3,4.6453027]
[1723915002025,0.00028265,2618.6,2618.5,1.43192]
[1723915002400,0.00028265,2618.6,2618.5,9.68136965]
[1723915002704,0.00028265,2618.6,2618.5,10.01644047]
[1723915003805,0.00028265,2618.6,2618.5,15.26756047]
[1723915004005,0.00028265,2618.6,2618.5,17.77915954]
[1723915004211,0.00028265,2618.6,2618.5,17.68845715]
[1723915004412,0.00028265,2618.6,2618.5,15.17685808]
[1723915004912,0.00028265,2618.6,2618.5,14.18314047]
[1723915005301,1.43214265,2618.6,2618.5,8.58452047]
[1723915005511,1.43192,2618.5,2618.4,1.43193]
[1723915005810,1.43192,2618.5,2618.4,1.76719556]
[1723915006420,1.43192,2618.5,2618.4,0.33526556]
[1723915006716,1.43192,2618.5,2618.3,4.6452727]
[1723915006717,1.43197,2618.4,2618.3,4.6452727]
[1723915006914,1.78177,2618.4,2618.3,4.98061725]
[1723915007220,0.3498,2618.4,2618.3,4.98061725]
[1723915007720,1.78177,2618.4,2618.3,4.98061725]
[1723915008615,1.78177,2618.4,2618.3,3.54862725]
[1723915009119,1.78177,2618.4,2618.3,4.98064725]
[1723915010213,1.78177,2618.4,2618.3,4.6453027]
[1723915010412,1.78177,2618.4,2618.3,4.98060917]
[1723915011712,1.78177,2618.4,2618.3,3.54858917]
[1723915012318,1.78177,2618.4,2618.3,0.34078917]
[1723915013216,1.78177,2618.4,2618.3,1.77280917]
[1723915013620,1.78177,2618.4,2618.3,0.34078917]
[1723915014015,1.78177,2618.4,2618.3,1.77280917]
[1723915014614,1.78177,2618.4,2618.3,1.4375027]
[1723915014916,1.78177,2618.4,2618.3,0.34085227]
[1723915015115,1.78177,2618.4,2618.3,1.77287227]
[1723915016018,1.78177,2618.4,2618.3,0.34084196]
[1723915016428,1.78177,2618.4,2618.3,1.77286196]
[1723915017219,1.43195,2618.5,2618.4,1.43196]
[1723915017416,1.43195,2618.5,2618.4,1.76731926]
[1723915017717,1.43195,2618.5,2618.4,1.76732926]
[1723915017927,2.53195,2618.5,2618.4,0.33535926]
[1723915018626,1.43197,2618.4,2618.3,1.4374727]
[1723915018926,1.43197,2618.4,2618.3,1.77280016]
[1723915020331,0.35718265,2618.6,2618.3,0.34081016]
[1723915020630,1.10028265,2618.6,2618.5,1.43191]
[1723915020929,1.10028265,2618.6,2618.5,1.76723746]
[1723915021522,0.00028265,2618.6,2618.5,11.32614746]
[1723915021721,0.00028265,2618.6,2618.5,23.42833305]
[1723915021916,0.00028265,2618.6,2618.5,23.3199942]
[1723915022220,0.00028265,2618.6,2618.5,21.94575617]
[1723915022419,0.00028265,2618.6,2618.5,23.43897675]
[1723915022619,0.00028265,2618.6,2618.5,21.94575617]
[1723915022820,0.00028265,2618.6,2618.5,22.50126386]
[1723915023026,0.00028265,2618.6,2618.5,23.43887521]
[1723915023229,0.00028265,2618.6,2618.5,23.43888877]
[1723915023623,0.00028265,2618.6,2618.5,20.90697877]
[1723915023934,0.00028265,2618.6,2618.5,16.59026501]
[1723915024232,0.00028265,2618.6,2618.5,20.40946501]
[1723915024630,0.00028265,2618.6,2618.5,16.59026501]
[1723915025535,0.00028265,2618.6,2618.5,15.65263636]
[1723915025726,1.43214265,2618.6,2618.5,8.44332688]
[1723915025926,6.68320265,2618.6,2618.5,0.33523054]
[1723915026231,1.43197,2618.4,2618.3,0.0054827]
[1723915026427,1.43197,2618.4,2618.3,0.34083281]
[1723915026618,6.68314,2618.4,2618.3,0.34083281]
[1723915026822,1.43207,2618.3,2617.9,1.43492654]
[1723915027033,2.53219,2618.0,2617.9,0.00269654]
[1723915027923,1.78209,2618.0,2617.9,0.00269654]
[1723915028837,1.78209,2618.0,2617.8,6.12494061]
[1723915029132,1.78209,2618.0,2617.9,7.86953486]
[1723915029431,1.78209,2618.0,2617.9,9.30177486]
[1723915029817,1.78209,2618.0,2617.9,9.30453847]
[1723915030223,1.78209,2618.0,2617.9,7.87229847]
[1723915030630,1.78209,2618.0,2617.9,9.30453847]
[1723915030935,1.78209,2618.0,2617.9,7.87229847]
[1723915031328,0.3499,2618.0,2617.9,9.30453847]
[1723915031531,1.43212,2618.2,2617.9,8.86786254]
[1723915031829,2.64128265,2618.6,2618.5,1.43191]
[1723915031830,1.43216265,2618.6,2618.5,1.43191]
[1723915032131,1.43219265,2618.6,2618.2,0.99563797]
[1723915032325,0.00028265,2618.6,2618.5,1.43191]
[1723915032525,1.43214265,2618.6,2618.5,1.43191]
[1723915033421,0.00028265,2618.6,2618.5,1.43191]
[1723915033935,1.43214265,2618.6,2618.5,1.43191]
[1723915034134,0.35098265,2618.6,2618.4,0.358]
[1723915034329,0.35098265,2618.6,2618.5,1.43191]
[1723915034833,1.78284265,2618.6,2618.5,1.43191]
[1723915035540,1.43191,2618.5,2618.4,0.358]
[1723915037438,1.43197,2618.4,2618.3,3.2078]
[1723915039438,1.43197,2618.4,2618.3,4.63978]
[1723915039938,1.43197,2618.4,2618.3,3.2078]
[1723915044135,1.78286265,2618.6,2618.3,1.432]
[1723915044344,0.35098265,2618.6,2618.3,1.432]
[1723915044530,1.43194,2618.5,2618.4,1.80746]
[1723915044937,1.43194,2618.5,2618.4,0.3755]
[1723915045140,5.25114,2618.5,2618.4,1.80747]
[1723915045434,5.25114,2618.5,2618.4,0.3755]
[1723915045827,1.43194,2618.5,2618.4,1.80747]
[1723915046031,0.35098265,2618.6,2618.5,1.43191]
[1723915046032,0.00028265,2618.6,2618.5,1.43191]
[1723915046238,0.00028265,2618.6,2618.5,6.86866858]
[1723915046545,1.79976,2619.0,2618.9,1.4317]
[1723915046930,0.3681,2619.0,2618.9,1.4317]
[1723915048028,0.34842716,2619.2,2619.0,1.43164]
[1723915048447,1.43159,2619.1,2619.0,1.43164]
[1723915048840,0.34842716,2619.2,2619.0,1.43164]
[1723915049038,0.34842716,2619.2,2619.1,1.43159]
[1723915049039,0.00572716,2619.2,2619.1,1.43159]
[1723915049339,0.00572716,2619.2,2619.1,5.24999]
[1723915050038,11.03346261,2619.8,2619.2,1.43153]
[1723915050039,5.52369261,2619.8,2619.2,1.43153]
[1723915050242,1.43568261,2619.8,2619.6,1.43128]
[1723915050441,1.43568261,2619.8,2619.7,1.43126]
[1723915050741,1.43128,2619.7,2619.5,1.43134]
[1723915053137,1.43128,2619.7,2619.6,1.43131]
[1723915053339,1.43128,2619.7,2619.3,4.28382716]
[1723915053732,1.43128,2619.7,2619.5,1.43133]
[1723915054335,1.43128,2619.7,2619.6,1.43131]
[1723915055038,1.43128,2619.7,2619.5,1.43133]
[1723915055443,1.43128,2619.7,2619.6,1.43131]
[1723915055933,1.43569261,2619.8,2619.7,1.43126]
[1723915056532,1.43569261,2619.8,2619.3,4.28382716]
[1723915056739,1.43570261,2619.8,2619.7,1.43126]
[1723915056947,1.43126,2619.7,2619.6,1.43128]
[1723915057747,1.43126,2619.7,2619.3,4.28382716]
[1723915057748,0.00446261,2619.8,2619.3,4.28382716]
[1723915057948,1.43133,2619.6,2619.5,1.43133]
[1723915058252,1.43133,2619.6,2619.3,4.28382716]
[1723915058253,1.4313,2619.7,2619.6,1.43131]
[1723915059847,1.43570261,2619.8,2619.7,1.43126]
[1723915060545,0.00446261,2619.8,2619.7,5.24806]
[1723915060739,0.00572716,2619.9,2619.8,1.4312]
[1723915060948,0.00572716,2619.9,2619.8,6.6792]
[1723915061252,7.2958,2620.4,2619.8,6.6792]
[1723915061253,3.2078,2620.4,2620.3,1.43093]
[1723915061753,3.21129957,2620.4,2620.3,1.43581674]
[1723915062657,8.45817957,2620.4,2620.3,0.00488674]
[1723915062843,1.43115,2619.9,2619.8,0.3621]
[1723915063065,1.43126,2619.7,2619.6,3.2078]
[1723915063642,6.68012,2619.7,2619.6,3.2078]
[1723915063844,6.68012,2619.7,2619.6,3.21060083]
[1723915064051,5.24886,2619.7,2619.6,3.21060083]
[1723915064556,1.43126,2619.7,2619.6,3.21060083]
[1723915066052,1.43126,2619.7,2619.6,0.00280083]
[1723915068846,1.43104,2620.1,2619.6,0.00280083]
[1723915069046,1.43124,2619.8,2619.6,1.43410083]
[1723915069449,1.43126,2619.7,2619.6,0.00280083]
[1723915075560,1.43123,2619.8,2619.6,1.43409083]
[1723915075762,1.43126,2619.7,2619.6,0.00280083]
[1723915076356,0.3582,2620.0,2619.6,0.00280083]
[1723915076563,1.78933,2620.0,2619.8,1.43118]
[1723915076758,1.43118,2619.9,2619.7,1.43123]
[1723915077271,0.3582,2620.0,2619.6,0.36920083]
[1723915077570,1.43126,2619.7,2619.6,0.00280083]
[1723915078774,2.86252,2619.7,2619.6,0.00280083]
[1723915080470,2.86252,2619.7,2619.3,1.79927716]
[1723915080471,2.86382,2618.5,2618.4,0.77510252]
[1723915080668,4.63968,2618.6,2618.4,0.77510252]
[1723915080870,1.43191,2618.5,2618.4,0.77510252]
[1723915081376,1.43191,2618.5,2618.4,0.77884082]
[1723915081377,1.43592126,2618.5,2618.4,0.77884082]
[1723915083263,4.64372126,2618.5,2618.4,0.77884082]
[1723915086273,4.64372126,2618.5,2618.4,0.0037383]
[1723915086573,0.00401126,2618.5,2618.4,0.0037383]
[1723915086766,0.00401126,2618.5,2618.4,1.1021383]
[1723915089381,0.00401126,2618.5,2618.4,0.0037383]
[1723915089865,0.00401126,2618.5,2618.4,3.8229383]
[1723915090065,0.00401126,2618.5,2618.4,5.2549083]
[1723915090672,0.00401126,2618.5,2618.4,3.8229383]
[1723915090873,0.00401126,2618.5,2618.4,5.2549083]
[1723915091181,0.00401126,2618.5,2618.4,0.0037383]
[1723915091479,0.00401126,2618.5,2618.4,3.8229383]
[1723915091675,0.00401126,2618.5,2618.4,5.2549083]
[1723915091880,0.00401126,2618.5,2618.4,0.0037383]
[1723915092284,0.00401126,2618.5,2618.4,5.2549083]
[1723915094079,5.50883126,2618.5,2618.4,0.0037383]
[1723915094782,4.07692126,2618.5,2618.4,0.0037383]
[1723915095278,9.32803126,2618.5,2618.4,0.0037383]
[1723915095473,5.50883126,2618.5,2618.4,0.0037383]
[1723915097180,4.07692126,2618.5,2618.4,0.0037383]
[1723915097480,1.43592126,2618.5,2618.4,0.0037383]
[1723915101481,2.86783126,2618.5,2618.4,0.0037383]
[1723915102582,6.94074126,2618.5,2618.4,0.0037383]
[1723915103779,15.75994126,2618.5,2618.4,0.0037383]
[1723915107188,10.75994126,2618.5,2618.4,0.0037383]
[1723915111993,5.50883126,2618.5,2618.4,0.0037383]
[1723915112286,2.86783126,2618.5,2618.4,0.0037383]
[1723915112593,1.43592126,2618.5,2618.4,3.8229383]
[1723915113089,0.00401126,2618.5,2618.4,5.6280083]
[1723915113290,0.00401126,2618.5,2618.4,18.65485687]
[1723915113880,0.00572716,2618.7,2618.6,1.43186]
[1723915114078,0.00572716,2618.7,2618.6,5.25026]
[1723915114395,3.2078,2618.9,2618.8,1.43175]
[1723915114689,4.63931,2619.3,2618.7,3.8184]
[1723915114877,0.0043179,2619.3,2618.8,7.89073329]
[1723915115080,0.0043179,2619.3,2619.2,1.43153]
[1723915115596,0.0043179,2619.3,2619.2,5.24913]
[1723915116185,1.43153,2619.2,2619.0,1.43162]
[1723915116588,3.2121179,2619.3,2619.0,13.12032303]
[1723915116780,3.2121179,2619.3,2619.0,9.30192303]
[1723915116980,1.43154,2619.2,2619.1,0.3473]
[1723915117384,1.43154,2619.2,2619.1,4.1657]
[1723915117582,3.2121179,2619.3,2619.1,4.1657]
[1723915117783,1.43153,2619.2,2619.1,0.3473]
[1723915118186,1.43153,2619.2,2619.1,4.1657]
[1723915118393,1.43153,2619.2,2619.1,0.3473]
[1723915118588,1.43153,2619.2,2619.1,4.1657]
[1723915118786,1.43153,2619.2,2619.1,0.3473]
[1723915119090,4.6436179,2619.3,2619.1,4.1657]
[1723915119293,4.6436179,2619.3,2619.1,0.3473]
[1723915119883,1.43153,2619.2,2619.1,0.3473]
[1723915120889,3.2121179,2619.3,2619.1,0.3473]
[1723915121097,1.43153,2619.2,2619.1,0.3473]
[1723915125786,4.6436279,2619.3,2619.1,1.77889]
[1723915125996,0.0043179,2619.3,2619.2,1.43153]
[1723915126497,0.0043179,2619.3,2619.2,5.24913]
[1723915128290,0.0043179,2619.3,2619.2,13.37196414]
[1723915128600,0.0043179,2619.3,2619.2,18.37196414]
[1723915130298,0.00572716,2619.5,2619.4,1.43142]
[1723915130492,1.43113,2620.0,2619.9,1.43114]
[1723915130493,1.43112,2620.0,2619.9,1.43114]
[1723915130805,1.43107,2620.1,2620.0,1.43109]
[1723915131093,1.43103,2620.2,2620.1,1.43104]
[1723915131295,1.43102,2620.2,2620.1,1.43103]
[1723915131496,1.43378302,2620.2,2620.1,1.43103]
[1723915131797,1.43104,2620.1,2620.0,1.43106]
[1723915131990,1.43104,2620.1,2620.0,1.80876]
[1723915132388,1.43378302,2620.2,2620.0,1.80876]
[1723915132597,1.43378302,2620.2,2620.1,0.3609]
[1723915132798,1.43378302,2620.2,2620.1,1.79194]
[1723915133300,1.43378302,2620.2,2620.1,0.3609]
[1723915133500,0.00276302,2620.2,2620.1,1.79194]
[1723915133692,1.43374302,2620.2,2620.1,0.3609]
[1723915133894,4.64154302,2620.2,2620.1,0.3609]
[1723915135889,1.43109,2620.0,2619.9,0.00572716]
[1723915137305,6.67898,2620.0,2619.9,0.00572716]
[1723915137602,7.02378,2620.0,2619.9,0.00572716]
[1723915137899,5.59269,2620.0,2619.9,0.00572716]
[1723915138115,1.43107,2620.1,2619.9,0.00572716]
[1723915138292,1.43109,2620.0,2619.9,0.00572716]
[1723915138498,1.43109,2620.0,2619.9,0.36382716]
[1723915139002,1.43109,2620.0,2619.9,0.00572716]
[1723915140298,3.21056302,2620.2,2619.9,5.25363716]
[1723915140497,1.43104,2620.1,2619.9,1.78393716]
[1723915140700,1.43109,2620.0,2619.9,0.35282716]
[1723915141497,1.43109,2620.0,2619.9,0.00572716]
[1723915143905,6.67898,2620.0,2619.9,0.00572716]
[1723915152123,9.88678,2620.0,2619.9,0.00572716]
[1723915157030,1.43137,2619.5,2619.4,0.7158]
[1723915157427,1.43137,2619.5,2619.4,8.6001485]
[1723915157629,1.43137,2619.5,2619.4,10.0315685]
[1723915157833,1.43135,2619.6,2619.5,1.43137]
[1723915161827,0.3659,2619.7,2619.4,3.2472]
[1723915162027,1.43131,2619.6,2619.4,3.2472]
[1723915162222,1.43131,2619.6,2619.5,8.12506841]
[1723915162437,4.63911,2619.6,2619.5,8.12506841]
[1723915163635,4.63911,2619.6,2619.5,9.55643841]
[1723915163840,1.43131,2619.6,2619.5,9.55643841]
[1723915164435,1.43123,2619.8,2619.7,1.43124]
[1723915165349,4.63898,2619.9,2619.8,1.4312]
[1723915165531,1.43115,2619.9,2619.8,1.4312]
[1723915165726,6.61913,2620.0,2619.8,1.4312]
[1723915165937,5.51913,2620.0,2619.8,1.4312]
[1723915166524,1.43115,2619.9,2619.8,1.4312]
[1723915167334,5.51913,2620.0,2619.9,1.43115]
[1723915167738,5.51913,2620.0,2619.8,1.43117]
[1723915168348,1.43115,2619.9,2619.8,1.43117]
[1723915169339,1.43113,2620.0,2619.8,1.43117]
[1723915169734,1.43104,2620.1,2619.7,1.77204]
[1723915169935,1.43119,2619.9,2619.8,1.4312]
[1723915170747,1.43119,2619.9,2619.7,0.3408]
[1723915171446,1.43119,2619.9,2619.8,1.4312]
[1723915173045,1.43119,2619.9,2619.7,1.77202]
[1723915174345,1.43119,2619.9,2619.8,1.4312]
[1723915174648,1.43115,2619.9,2619.8,1.4312]
[1723915174848,1.43113,2620.0,2619.8,1.4312]
[1723915175143,1.43377302,2620.2,2620.0,1.43104]
[1723915175338,1.43377302,2620.2,2620.1,0.745]
[1723915175643,1.43377302,2620.2,2620.1,2.17604]
[1723915175847,1.43377302,2620.2,2620.1,0.745]
[1723915176141,0.00276302,2620.2,2620.1,2.17604]
[1723915177846,1.43374302,2620.2,2620.1,2.17604]
[1723915178151,1.43374302,2620.2,2620.1,0.745]
[1723915178845,1.43374302,2620.2,2620.1,2.17604]
[1723915179045,1.43374302,2620.2,2620.1,0.745]
[1723915179241,4.64154302,2620.2,2620.1,0.3749]
[1723915182545,4.64154302,2620.2,2619.9,1.43111]
[1723915182546,1.43115,2619.9,2619.8,0.3443]
[1723915182745,1.43111,2620.0,2619.8,1.7755]
[1723915183048,1.43106,2620.1,2619.9,9.61461878]
[1723915183243,1.43106,2620.1,2619.9,1.43111]
[1723915183740,3.21056302,2620.2,2619.9,1.43111]
[1723915183741,1.43109,2620.0,2619.9,1.43111]
[1723915184450,1.43107,2620.1,2619.8,0.3443]
[1723915184650,4.64158302,2620.2,2619.8,1.33650444]
[1723915184851,4.64158302,2620.2,2620.1,1.43104]
[1723915185749,4.64158302,2620.2,2620.0,1.43106]
[1723915185947,4.64158302,2620.2,2619.9,1.43111]
[1723915185948,1.43109,2620.0,2619.9,1.43111]
[1723915186154,1.43109,2620.1,2619.9,9.48805274]
[1723915186351,1.43109,2620.0,2619.9,1.43111]
[1723915186539,1.43116,2619.9,2619.7,1.70930444]
[1723915186739,4.639,2619.8,2619.7,1.0946]
[1723915186944,4.639,2619.8,2619.7,2.52586]
[1723915187345,1.4312,2619.8,2619.7,2.52586]
[1723915188255,1.4312,2619.8,2619.7,1.0946]
[1723915189149,1.4312,2619.8,2619.7,2.52586]
[1723915189443,4.639,2619.8,2619.7,1.0946]
[1723915189650,4.639,2619.8,2619.7,2.52586]
[1723915190251,4.639,2619.8,2619.7,0.7171]
[1723915192857,1.43126,2619.7,2619.6,1.43131]
[1723915193046,4.63904,2619.8,2619.6,2.12511]
[1723915193360,1.43124,2619.8,2619.7,1.43126]
[1723915193857,4.3078,2620.1,2619.7,1.1]
[1723915194061,4.3078,2620.1,2619.8,1.1]
[1723915194254,1.43115,2619.9,2619.8,2.53118]
[1723915199853,1.43115,2619.9,2619.8,1.43118]
[1723915203058,4.63893,2620.0,2619.9,1.43115]
[1723915203758,1.43123,2619.8,2619.7,1.43123]
[1723915203961,1.43131,2619.6,2619.5,0.99220444]
[1723915204263,1.43137,2619.5,2619.4,3.52360444]
[1723915204448,1.43137,2619.5,2619.4,2.5314]
[1723915204647,5.00656,2619.7,2619.5,1.43134]
[1723915204648,1.43133,2619.6,2619.5,1.43134]
[1723915204953,1.43133,2619.6,2619.5,1.43135]
[1723915204954,1.43135,2619.6,2619.5,1.43135]
[1723915205864,1.43137,2619.5,2619.4,2.5314]
[1723915206162,1.43137,2619.5,2619.4,11.33875111]
[1723915206357,1.43137,2619.5,2619.4,10.34654667]
[1723915207557,1.43137,2619.5,2619.4,11.33875111]
[1723915207764,1.43137,2619.5,2619.4,10.34654667]
[1723915208657,1.43134,2619.6,2619.5,1.43136]
[1723915208963,1.43134,2619.6,2619.4,9.90735111]
[1723915208964,1.43137,2619.5,2619.4,3.52359444]
[1723915209365,1.43135,2619.6,2619.5,8.07831333]
[1723915209553,1.43135,2619.6,2619.5,1.43137]
[1723915210262,1.43137,2619.5,2619.4,3.52359444]
[1723915210459,1.43135,2619.6,2619.5,1.43137]
[1723915210758,1.43135,2619.6,2619.5,9.47451774]
[1723915211057,3.2078,2619.7,2619.6,1.43131]
[1723915211948,1.1,2619.9,2619.6,1.43131]
[1723915212360,1.4312,2619.8,2619.7,0.3782]
[1723915219269,1.4312,2619.8,2619.7,1.80946]
[1723915219563,2.53118,2619.9,2619.8,1.4312]
[1723915219766,1.43377302,2620.2,2620.1,1.43104]
[1723915219767,1.43378302,2620.2,2620.1,1.43104]
[1723915220066,0.00276302,2620.2,2620.1,2.53104]
[1723915220667,1.43374302,2620.2,2620.1,1.43104]
[1723915222664,1.43377302,2620.2,2620.1,1.43104]
[1723915224072,2.8623,2619.9,2619.8,3.2078]
[1723915224383,1.43131,2619.6,2619.5,0.6901]
[1723915224670,1.4313,2619.7,2619.5,2.12147]
[1723915224975,1.4313,2619.7,2619.5,10.06599305]
[1723915225170,1.8435,2619.8,2619.5,10.06599305]
[1723915225376,1.80734,2619.8,2619.6,1.43129]
[1723915225877,1.80734,2619.8,2619.5,4.21363444]
[1723915226375,1.80734,2619.8,2619.5,3.22143]
[1723915226563,1.43127,2619.7,2619.5,1.7901]
[1723915229475,1.43131,2619.6,2619.5,1.7901]
[1723915229774,1.43148,2619.3,2619.2,0.9979316]
[1723915229973,4.63928,2619.3,2619.2,0.00572716]
[1723915230175,5.00568,2619.3,2619.2,0.00572716]
[1723915231378,1.79788,2619.3,2619.2,0.00572716]
[1723915232970,3.2078,2619.9,2619.2,12.98871686]
[1723915233172,1.4312,2619.8,2619.7,1.1]
[1723915234074,1.4312,2619.8,2619.6,1.1]
[1723915234271,1.4592,2620.0,2619.7,0.3733]
[1723915234474,1.4312,2619.8,2619.7,0.3733]
[1723915234977,1.43126,2619.7,2619.3,0.3662]
[1723915235181,1.43142,2619.4,2619.3,0.7395]
[1723915235477,1.43142,2619.4,2619.3,8.61939597]
[1723915237375,1.43142,2619.4,2619.3,8.25319597]
[1723915237976,1.43148,2619.3,2619.2,0.00572716]
[1723915244285,5.73928,2619.3,2619.2,0.00572716]
[1723915245087,6.10228,2619.3,2619.2,0.00572716]
[1723915246977,7.53376,2619.3,2619.2,0.00572716]
[1723915247582,3.2078,2619.3,2619.2,1.10572716]
[1723915247782,3.2078,2619.3,2619.2,2.53725716]
[1723915251185,4.63928,2619.3,2619.2,1.43725716]
[1723915251788,3.2078,2619.3,2619.2,1.43725716]
[1723915253289,3.2078,2619.3,2619.2,1.80235716]
[1723915253792,1.43148,2619.3,2619.2,1.80235716]
[1723915254291,1.43148,2619.3,2619.2,0.37082716]
[1723915254484,1.43148,2619.3,2619.2,0.00572716]
[1723915254687,2.86296,2619.3,2619.2,0.00572716]
[1723915255089,3.96296,2619.3,2619.2,0.00572716]
[1723915257697,2.53148,2619.3,2619.2,0.00572716]
[1723915257993,3.96296,2619.3,2619.2,0.00572716]
[1723915262308,2.53148,2619.3,2619.2,0.00572716]
[1723915263407,3.2078,2619.4,2619.3,1.43148]
[1723915263911,3.2078,2619.4,2619.3,2.15648]
[1723915264316,4.63922,2619.4,2619.3,2.15648]
[1723915264514,3.2078,2619.4,2619.3,2.15648]
[1723915264711,1.1,2619.7,2619.3,0.725]
[1723915265013,7.2958,2619.8,2619.6,1.43131]
[1723915265014,8.3958,2619.8,2619.6,1.43131]
[1723915265314,1.43133,2619.6,2619.4,0.3623]
[1723915265515,1.43133,2619.6,2619.5,0.3441]
[1723915265914,1.43131,2619.6,2619.5,0.3441]
[1723915266107,2.53129,2619.7,2619.5,1.77547]
[1723915266415,1.43131,2619.6,2619.5,0.3441]
[1723915268101,1.43131,2619.6,2619.2,0.00572716]
[1723915268102,1.43148,2619.3,2619.2,0.00572716]
[1723915268317,7.17076,2619.3,2619.2,0.00572716]
[1723915268507,10.98836,2619.3,2619.2,0.00572716]
[1723915268902,1.4318,2618.7,2618.5,5.63343854]
[1723915269106,1.4318,2618.7,2618.6,0.3436]
[1723915270106,1.4318,2618.7,2618.6,0.6884]
[1723915270611,1.43191,2618.5,2618.4,0.00946546]
[1723915271213,1.4319,2618.6,2618.4,3.82866546]
[1723915271517,3.2078,2618.7,2618.4,0.00946546]
[1723915272404,1.43191,2618.5,2618.4,0.00946546]
[1723915273408,1.43191,2618.5,2618.4,3.82866546]
[1723915274021,1.4319,2618.6,2618.4,3.82866546]
[1723915274215,1.4319,2618.6,2618.4,0.00946546]
[1723915274407,4.63963,2618.7,2618.4,1.44140546]
[1723915274614,1.43183,2618.7,2618.5,1.43191]
[1723915275015,1.43183,2618.7,2618.6,0.3592]
[1723915279531,1.43191,2618.5,2618.4,0.00946546]
[1723915280126,1.43191,2618.5,2618.4,3.82866546]
[1723915284024,1.43191,2618.5,2618.4,0.00946546]
[1723915284321,1.43191,2618.5,2618.4,3.82866546]
[1723915284526,1.43191,2618.5,2618.4,0.00946546]
[1723915285625,6.07162,2618.5,2618.4,0.00514756]
[1723915286216,6.42712,2618.5,2618.4,0.00514756]
[1723915286618,6.42712,2618.5,2618.4,0.0088032]
[1723915287814,11.67823,2618.5,2618.4,0.0088032]
[1723915288028,16.67823,2618.5,2618.4,0.0088032]
[1723915292133,16.67823,2618.5,2617.5,1.43243]
[1723915292134,1.43244,2617.6,2617.3,1.43254]
[1723915292318,1.43244,2617.6,2617.5,0.7332]
[1723915293119,1.43663025,2617.6,2617.5,0.73616219]
[1723915294128,0.00419025,2617.6,2617.5,0.00296219]
[1723915295020,0.00419025,2617.6,2617.5,0.72986219]
[1723915295533,0.00419025,2617.6,2617.5,1.07206219]
[1723915297223,1.43660025,2617.6,2617.5,1.07206219]
[1723915299831,1.43660025,2617.6,2617.5,2.50452219]
[1723915299832,1.10419025,2617.6,2617.5,2.50452219]
[1723915300031,1.10419025,2617.6,2617.5,1.07206219]
[1723915300329,2.53660025,2617.6,2617.5,1.07206219]
[1723915301137,1.10419025,2617.6,2617.5,1.07206219]
[1723915302030,1.10419025,2617.6,2617.5,2.50452219]
[1723915302232,1.10419025,2617.6,2617.5,1.07206219]
[1723915302824,2.53660025,2617.6,2617.5,1.07206219]
[1723915305633,3.96901025,2617.6,2617.5,1.07206219]
[1723915306844,2.53660025,2617.6,2617.5,1.07206219]
[1723915307234,3.96901025,2617.6,2617.5,0.00296219]
[1723915308838,7.78901025,2617.6,2617.5,0.00296219]
[1723915309439,6.35660025,2617.6,2617.5,0.00296219]
[1723915310538,7.78901025,2617.6,2617.5,0.00296219]
[1723915312638,14.22142025,2617.6,2617.5,0.00296219]
[1723915313835,12.78901025,2617.6,2617.5,0.00296219]
[1723915314035,14.22142025,2617.6,2617.5,0.00296219]
[1723915314841,14.41279172,2617.6,2617.5,0.00296219]
[1723915316842,11.68901025,2617.6,2617.5,0.00296219]
[1723915317049,12.78901025,2617.6,2617.5,0.00296219]
[1723915317245,7.78901025,2617.6,2617.5,0.00296219]
[1723915317440,12.78901025,2617.6,2617.5,0.00296219]
[1723915319450,1.43660025,2617.6,2617.5,0.00296219]
[1723915319657,2.53660025,2617.6,2617.5,0.00296219]
[1723915320548,1.43660025,2617.6,2617.5,0.00296219]
[1723915320745,3.96901025,2617.6,2617.5,0.00296219]
[1723915320946,7.78901025,2617.6,2617.5,0.00296219]
[1723915321448,8.16591025,2617.6,2617.5,0.00296219]
[1723915321851,7.06591025,2617.6,2617.5,0.00296219]
[1723915323957,2.86901025,2617.6,2617.5,0.00296219]
[1723915324851,3.21591025,2617.6,2617.5,0.00296219]
[1723915325052,2.86901025,2617.6,2617.5,0.00296219]
[1723915326858,6.68901025,2617.6,2617.5,0.00296219]
[1723915327567,6.88294612,2617.6,2617.5,0.00296219]
[1723915327971,8.31535612,2617.6,2617.5,0.00296219]
[1723915328963,6.88294612,2617.6,2617.5,0.00296219]
[1723915329166,6.68901025,2617.6,2617.5,0.00296219]
[1723915329367,8.12142025,2617.6,2617.5,0.00296219]
[1723915329561,6.68901025,2617.6,2617.5,0.00296219]
[1723915330867,6.8777569,2617.6,2617.5,0.00296219]
[1723915331874,6.68901025,2617.6,2617.5,0.00296219]
[1723915333667,9.89681025,2617.6,2617.5,0.00296219]
[1723915338276,6.07681025,2617.6,2617.5,0.00296219]
[1723915342477,2.86901025,2617.6,2617.5,0.00296219]
[1723915342781,6.07681025,2617.6,2617.5,0.00296219]
[1723915343866,7.17781025,2617.6,2617.5,0.00296219]
[1723915345882,3.97001025,2617.6,2617.5,0.00296219]
[1723915346783,7.17781025,2617.6,2617.5,0.00296219]
[1723915348777,3.97001025,2617.6,2617.5,0.00296219]
[1723915349083,7.17781025,2617.6,2617.5,0.00296219]
[1723915349286,12.43022025,2617.6,2617.5,0.00296219]
[1723915349479,12.97894928,2617.6,2617.5,0.00296219]